[Event "11th LCC Super Blitz KO 2019"]
[Site "London"]
[Date "2019.12.08"]
[Round "1.2"]
[White "Kvetny, Mark"]
[Black "Gormally, Daniel W"]
[Result "0-1"]
[ECO "A29"]
[WhiteElo "2420"]
[BlackElo "2497"]
[Annotator "ChessBase"]
[PlyCount "82"]
[EventDate "2019.12.08"]
[EventType "k.o."]
[EventCountry "ENG"]
[SourceTitle "playchess.com"]
[Source "ChessBase"]
[SourceQuality "1"]
[TimeControl "180+2"]

1. c4 {[%emt 0:00:00]} e5 {[%emt 0:00:00]} 2. Nc3 {[%emt 0:00:00]} Nf6 {[%emt 0:00:00]} 3. Nf3 {[%emt 0:00:01]} Nc6 {[%emt 0:00:02]} 4. d3 {[%emt 0:00:01]} Bc5 {[%emt 0:00:03]} 5. g3 {[%emt 0:00:04]} O-O {[%emt 0:00:02]} 6. Bg2 {[%emt 0:00:02]} d6 {[%emt 0:00:00]} 7. O-O {[%emt 0:00:03]} a6 {[%emt 0:00:01]} 8. Bg5 {[%emt 0:00:06]} h6 {[%emt 0:00:01]} 9. Bxf6 {[%emt 0:00:01]} Qxf6 {[%emt 0:00:01]} 10. a3 {[%emt 0:00:06]} Ba7 {[%emt 0:00:10]} 11. b4 {[%emt 0:00:01]} Bg4 {[%emt 0:00:09]} 12. Nd2 {[%emt 0:00:03]} Bd4 {[%emt 0:00:21]} 13. Nd5 {[%emt 0:00:10]} Qd8 {[%emt 0:00:01]} 14. Rb1 {[%emt 0:00:05]} Rb8 {[%emt 0:00:02]} 15. h3 {[%emt 0:00:04]} Bh5 {[%emt 0:00:02]} 16. Nf3 {[%emt 0:00:51]} Ba7 {[%emt 0:00:12]} 17. g4 {[%emt 0:00:08]} Bg6 {[%emt 0:00:02]} 18. e3 {[%emt 0:00:32]} f5 {[%emt 0:00:04]} 19. gxf5 {[%emt 0:00:00]} Bxf5 {[%emt 0:00:01]} 20. b5 {[%emt 0:00:06]} axb5 {[%emt 0:00:04]} 21. cxb5 {[%emt 0:00:01]} Ne7 {[%emt 0:00:01]} 22. Nh4 {[%emt 0:00:22]} Bh7 {[%emt 0:00:17]} 23. Qg4 {[%emt 0:00:06]} Kh8 {[%emt 0:00:19]} 24. Nxe7 {[%emt 0:00:19]} Qxe7 {[%emt 0:00:01]} 25. Be4 {[%emt 0:00:01]} g5 {[%emt 0:00:02]} 26. Ng6+ {[%emt 0:00:02]} Bxg6 {[%emt 0:00:06]} 27. Bxg6 {[%emt 0:00:01]} d5 {[%emt 0:00:05]} 28. Rbc1 {[%emt 0:00:17]} Qf6 {[%emt 0:00:18]} 29. Qh5 {[%emt 0:00:02]} Qg7 {[%emt 0:00:07]} 30. e4 {[%emt 0:00:08]} Rf4 {[%emt 0:00:19]} 31. Bf5 {[%emt 0:00:05]} Bb6 {[%emt 0:00:12]} 32. Kg2 {[%emt 0:00:05]} Rf8 {[%emt 0:00:01]} 33. Rc2 {[%emt 0:00:02]} Bd4 {[%emt 0:00:06]} 34. Rxc7 {[%emt 0:00:09]} Qxc7 {[%emt 0:00:13]} 35. Qxh6+ {[%emt 0:00:01]} Kg8 {[%emt 0:00:01]} 36. Be6+ {[%emt 0:00:04]} R8f7 {[%emt 0:00:06]} 37. Qg6+ {[%emt 0:00:02]} Kf8 {[%emt 0:00:03]} 38. b6 {[%emt 0:00:02]} Qc2 {[%emt 0:00:15]} 39. Qh6+ {[%emt 0:00:05]} Ke7 {[%emt 0:00:06]} 40. Bxf7 {[%emt 0:00:00]} Rxf2+ {[%emt 0:00:05]} 41. Kg3 {[%emt 0:00:00]} Rg2+ {[%emt 0:00:03]} 0-1

[Event "11th LCC Super Blitz KO 2019"]
[Site "London"]
[Date "2019.12.08"]
[Round "1.2"]
[White "Harvey, Marcus R"]
[Black "Flear, Glenn C"]
[Result "1/2-1/2"]
[ECO "A12"]
[WhiteElo "2412"]
[BlackElo "2440"]
[Annotator "NA"]
[PlyCount "103"]
[EventDate "2019.12.08"]
[EventType "k.o."]
[EventCountry "ENG"]
[SourceTitle "playchess.com"]
[Source "ChessBase"]
[SourceQuality "1"]
[TimeControl "180+2"]

1. Nf3 {[%emt 0:00:00]} d5 {[%emt 0:00:00]} 2. b3 {[%emt 0:00:00]} Nf6 {[%emt 0:00:02]} 3. Bb2 {[%emt 0:00:00]} Bg4 {[%emt 0:00:03]} 4. e3 {[%emt 0:00:01]} Nbd7 {[%emt 0:00:01]} 5. h3 {[%emt 0:00:01]} Bh5 {[%emt 0:00:02]} 6. Be2 {[%emt 0:00:00]} e6 {[%emt 0:00:01]} 7. O-O {[%emt 0:00:02]} Bd6 {[%emt 0:00:03]} 8. c4 {[%emt 0:00:01]} c6 {[%emt 0:00:01]} 9. Nc3 {[%emt 0:00:01]} O-O {[%emt 0:00:02]} 10. d4 {[%emt 0:00:01]} a6 {[%emt 0:00:01]} 11. Nd2 {[%emt 0:00:08]} Bxe2 {[%emt 0:00:05]} 12. Qxe2 {[%emt 0:00:04]} Re8 {[%emt 0:00:05]} 13. e4 {[%emt 0:00:01]} e5 {[%emt 0:00:12]} 14. dxe5 {[%emt 0:00:19]} Bxe5 {[%emt 0:00:01]} 15. cxd5 {[%emt 0:00:02]} cxd5 {[%emt 0:00:02]} 16. Qf3 {[%emt 0:00:19]} dxe4 {[%emt 0:00:05]} 17. Qe2 {[%emt 0:00:25]} Nc5 {[%emt 0:00:11]} 18. Nc4 {[%emt 0:00:05]} Bc7 {[%emt 0:00:13]} 19. Rad1 {[%emt 0:00:02]} Qe7 {[%emt 0:00:02]} 20. Nd5 {[%emt 0:00:10]} Nxd5 {[%emt 0:00:04]} 21. Rxd5 {[%emt 0:00:02]} Nd3 {[%emt 0:00:04]} 22. Ba1 {[%emt 0:00:47]} Rad8 {[%emt 0:00:01]} 23. Qg4 {[%emt 0:00:05]} f6 {[%emt 0:00:02]} 24. Rxd8 {[%emt 0:00:03]} Rxd8 {[%emt 0:00:03]} 25. Ne3 {[%emt 0:00:02]} Ne5 {[%emt 0:00:24]} 26. Qxe4 {[%emt 0:00:03]} Bb8 {[%emt 0:00:13]} 27. Nf5 {[%emt 0:00:12]} Qd7 {[%emt 0:00:01]} 28. g3 {[%emt 0:00:12]} g6 {[%emt 0:00:06]} 29. Nh6+ {[%emt 0:00:08]} Kg7 {[%emt 0:00:02]} 30. Ng4 {[%emt 0:00:00]} Nxg4 {[%emt 0:00:10]} 31. hxg4 {[%emt 0:00:02]} Re8 {[%emt 0:00:00]} 32. Qf3 {[%emt 0:00:05]} Be5 {[%emt 0:00:02]} 33. Rd1 {[%emt 0:00:01]} Qc7 {[%emt 0:00:09]} 34. Bxe5 {[%emt 0:00:01]} Rxe5 {[%emt 0:00:01]} 35. Kg2 {[%emt 0:00:08]} Re7 {[%emt 0:00:04]} 36. Rd5 {[%emt 0:00:06]} Qc6 {[%emt 0:00:08]} 37. Rd3 {[%emt 0:00:03]} Qxf3+ {[%emt 0:00:04]} 38. Kxf3 {[%emt 0:00:01]} Kf7 {[%emt 0:00:02]} 39. Rd6 {[%emt 0:00:05]} Re6 {[%emt 0:00:07]} 40. Rd7+ {[%emt 0:00:01]} Re7 {[%emt 0:00:01]} 41. Rd6 {[%emt 0:00:00]} Re6 {[%emt 0:00:01]} 42. Rd7+ {[%emt 0:00:02]} Re7 {[%emt 0:00:01]} 43. Rxe7+ {[%emt 0:00:10]} Kxe7 {[%emt 0:00:01]} 44. Ke4 {[%emt 0:00:01]} Ke6 {[%emt 0:00:02]} 45. Kd4 {[%emt 0:00:03]} Kd6 {[%emt 0:00:08]} 46. b4 {[%emt 0:00:03]} b6 {[%emt 0:00:08]} 47. a4 {[%emt 0:00:02]} Kc6 {[%emt 0:00:06]} 48. f3 {[%emt 0:00:11]} Kd6 {[%emt 0:00:02]} 49. f4 {[%emt 0:00:03]} h6 {[%emt 0:00:05]} 50. b5 {[%emt 0:00:04]} axb5 {[%emt 0:00:06]} 51. axb5 {[%emt 0:00:01]} Ke6 {[%emt 0:00:02]} 52. Ke4 {[%emt 0:00:07] Ke5+} 1/2-1/2

[Event "11th LCC Super Blitz KO 2019"]
[Site "London"]
[Date "2019.12.08"]
[Round "1.2"]
[White "Beinoras, Mindaugas"]
[Black "Pert, Nicholas"]
[Result "0-1"]
[ECO "A45"]
[WhiteElo "2350"]
[BlackElo "2560"]
[Annotator "ChessBase"]
[PlyCount "110"]
[EventDate "2019.12.08"]
[EventType "k.o."]
[EventCountry "ENG"]
[SourceTitle "playchess.com"]
[Source "ChessBase"]
[SourceQuality "1"]
[TimeControl "180+2"]

1. d4 {[%emt 0:00:00]} Nf6 {[%emt 0:00:00]} 2. Bg5 {[%emt 0:00:00]} Ne4 {[%emt 0:00:00]} 3. Bh4 {[%emt 0:00:01]} g5 {[%emt 0:00:08]} 4. f3 {[%emt 0:00:00]} gxh4 {[%emt 0:00:04]} 5. fxe4 {[%emt 0:00:01]} d5 {[%emt 0:00:04]} 6. exd5 {[%emt 0:00:02]} Qxd5 {[%emt 0:00:01]} 7. e3 {[%emt 0:00:06]} Bh6 {[%emt 0:00:03]} 8. Nc3 {[%emt 0:00:03]} Qg5 {[%emt 0:00:02]} 9. Qd3 {[%emt 0:00:28]} Nc6 {[%emt 0:00:09]} 10. Nf3 {[%emt 0:00:05]} Qa5 {[%emt 0:00:21]} 11. a3 {[%emt 0:00:11]} Bg4 {[%emt 0:00:05]} 12. Kf2 {[%emt 0:00:15]} h3 {[%emt 0:00:05]} 13. Qb5 {[%emt 0:00:09]} hxg2 {[%emt 0:00:06]} 14. Bxg2 {[%emt 0:00:02]} Qxb5 {[%emt 0:00:07]} 15. Nxb5 {[%emt 0:00:01]} O-O-O {[%emt 0:00:01]} 16. Rhe1 {[%emt 0:00:07]} Rhg8 {[%emt 0:00:02]} 17. c4 {[%emt 0:00:06]} e6 {[%emt 0:00:03]} 18. Nc3 {[%emt 0:00:02]} f5 {[%emt 0:00:26]} 19. d5 {[%emt 0:00:19]} Na5 {[%emt 0:00:09]} 20. Ne5 {[%emt 0:00:03]} Bg7 {[%emt 0:00:11]} 21. Nxg4 {[%emt 0:00:19]} fxg4 {[%emt 0:00:01]} 22. Bf1 {[%emt 0:00:15]} Bxc3 {[%emt 0:00:05]} 23. bxc3 {[%emt 0:00:01]} exd5 {[%emt 0:00:00]} 24. cxd5 {[%emt 0:00:02]} Rxd5 {[%emt 0:00:01]} 25. Rad1 {[%emt 0:00:04]} Rf8+ {[%emt 0:00:05]} 26. Ke2 {[%emt 0:00:05]} Rdf5 {[%emt 0:00:03]} 27. Rd4 {[%emt 0:00:07]} Rf2+ {[%emt 0:00:08]} 28. Kd1 {[%emt 0:00:01]} Rxf1 {[%emt 0:00:01]} 29. Rxg4 {[%emt 0:00:02]} Rxe1+ {[%emt 0:00:05]} 30. Kxe1 {[%emt 0:00:01]} Rf7 {[%emt 0:00:03]} 31. Ke2 {[%emt 0:00:03]} Nc6 {[%emt 0:00:01]} 32. Rg5 {[%emt 0:00:01]} b6 {[%emt 0:00:01]} 33. h4 {[%emt 0:00:02]} Kd7 {[%emt 0:00:06]} 34. h5 {[%emt 0:00:02]} Ne7 {[%emt 0:00:00]} 35. e4 {[%emt 0:00:01]} Ke6 {[%emt 0:00:03]} 36. Ke3 {[%emt 0:00:02]} Nc6 {[%emt 0:00:07]} 37. Rg8 {[%emt 0:00:01]} Ne5 {[%emt 0:00:01]} 38. Re8+ {[%emt 0:00:03]} Kd6 {[%emt 0:00:06]} 39. Rh8 {[%emt 0:00:01]} Ng4+ {[%emt 0:00:04]} 40. Kd4 {[%emt 0:00:05]} c5+ {[%emt 0:00:01]} 41. Kc4 {[%emt 0:00:01]} Nf6 {[%emt 0:00:02]} 42. Rd8+ {[%emt 0:00:09]} Ke6 {[%emt 0:00:05]} 43. h6 {[%emt 0:00:05]} Nxe4 {[%emt 0:00:03]} 44. Re8+ {[%emt 0:00:01]} Re7 {[%emt 0:00:02]} 45. Ra8 {[%emt 0:00:08]} Nd6+ {[%emt 0:00:01]} 46. Kd3 {[%emt 0:00:09]} Nf5 {[%emt 0:00:01]} 47. Kc4 {[%emt 0:00:03]} Nxh6 {[%emt 0:00:01]} 48. Kb5 {[%emt 0:00:01]} Nf5 {[%emt 0:00:02]} 49. a4 {[%emt 0:00:00]} Nd6+ {[%emt 0:00:12]} 50. Ka6 {[%emt 0:00:01]} Ne4 {[%emt 0:00:02]} 51. c4 {[%emt 0:00:03]} Nd6 {[%emt 0:00:02]} 52. a5 {[%emt 0:00:05]} bxa5 {[%emt 0:00:04]} 53. Kxa5 {[%emt 0:00:02]} Nxc4+ {[%emt 0:00:04]} 54. Kb5 {[%emt 0:00:00]} Nb6 {[%emt 0:00:02]} 55. Rh8 {[%emt 0:00:02]} c4 {[%emt 0:00:01]} 0-1

[Event "11th LCC Super Blitz KO 2019"]
[Site "London"]
[Date "2019.12.08"]
[Round "1.2"]
[White "Wallace, John Paul"]
[Black "Dong, Bao Nghia"]
[Result "0-1"]
[ECO "A57"]
[WhiteElo "2344"]
[BlackElo "2217"]
[Annotator "NA"]
[PlyCount "58"]
[EventDate "2019.12.08"]
[EventType "k.o."]
[EventCountry "ENG"]
[SourceTitle "playchess.com"]
[Source "ChessBase"]
[SourceQuality "1"]
[TimeControl "180+2"]

1. d4 {[%emt 0:00:00]} Nf6 {[%emt 0:00:00]} 2. c4 {[%emt 0:00:00]} c5 {[%emt 0:00:00]} 3. d5 {[%emt 0:00:00]} b5 {[%emt 0:00:01]} 4. Qc2 {[%emt 0:00:01]} bxc4 {[%emt 0:00:01]} 5. e4 {[%emt 0:00:01]} d6 {[%emt 0:00:00]} 6. Bxc4 {[%emt 0:00:03]} g6 {[%emt 0:00:01]} 7. Nc3 {[%emt 0:00:01]} Bg7 {[%emt 0:00:01]} 8. Nf3 {[%emt 0:00:01]} O-O {[%emt 0:00:02]} 9. O-O {[%emt 0:00:01]} Ba6 {[%emt 0:00:01]} 10. Nd2 {[%emt 0:00:09]} Nfd7 {[%emt 0:00:02]} 11. Re1 {[%emt 0:00:07]} Nb6 {[%emt 0:00:01]} 12. Bxa6 {[%emt 0:00:03]} Nxa6 {[%emt 0:00:02]} 13. a3 {[%emt 0:00:11]} Nc7 {[%emt 0:00:03]} 14. Rb1 {[%emt 0:00:03]} f5 {[%emt 0:00:05]} 15. Nf3 {[%emt 0:00:19]} e6 {[%emt 0:00:13]} 16. dxe6 {[%emt 0:00:06]} Nxe6 {[%emt 0:00:02]} 17. exf5 {[%emt 0:00:06]} Nd4 {[%emt 0:00:01]} 18. Nxd4 {[%emt 0:00:09]} cxd4 {[%emt 0:00:02]} 19. Ne4 {[%emt 0:00:20]} Rxf5 {[%emt 0:00:03]} 20. Bd2 {[%emt 0:00:04]} Rc8 {[%emt 0:00:02]} 21. Qd3 {[%emt 0:00:01]} Nc4 {[%emt 0:00:25]} 22. Ng3 {[%emt 0:00:33]} Rf7 {[%emt 0:00:14]} 23. Bc1 {[%emt 0:00:20]} Ne5 {[%emt 0:00:06]} 24. Qb3 {[%emt 0:00:07]} Qh4 {[%emt 0:00:10]} 25. Re4 {[%emt 0:00:10]} Qf6 {[%emt 0:00:15]} 26. Rf4 {[%emt 0:00:10]} Rxc1+ {[%emt 0:00:01]} 27. Rxc1 {[%emt 0:00:03]} Qxf4 {[%emt 0:00:01]} 28. Rc8+ {[%emt 0:00:03]} Bf8 {[%emt 0:00:01]} 29. Qc2 {[%emt 0:00:08]} d3 {[%emt 0:00:02]} 0-1

[Event "11th LCC Super Blitz KO 2019"]
[Site "London"]
[Date "2019.12.08"]
[Round "1.2"]
[White "Bukojemski, Adam"]
[Black "McPhillips, Joseph"]
[Result "1/2-1/2"]
[ECO "A07"]
[WhiteElo "2219"]
[BlackElo "2434"]
[Annotator "NA RC"]
[PlyCount "72"]
[EventDate "2019.12.08"]
[EventType "k.o."]
[EventCountry "ENG"]
[SourceTitle "playchess.com"]
[Source "ChessBase"]
[SourceQuality "1"]
[TimeControl "180+2"]

1. Nf3 {[%emt 0:00:00]} Nf6 {[%emt 0:00:00]} 2. Nc3 {[%emt 0:00:00]} e6 {[%emt 0:00:01]} 3. g3 {[%emt 0:00:03]} d5 {[%emt 0:00:01]} 4. d3 {[%emt 0:00:01]} Be7 {[%emt 0:00:04]} 5. Bg2 {[%emt 0:00:02]} O-O {[%emt 0:00:01]} 6. O-O {[%emt 0:00:01]} c5 {[%emt 0:00:02]} 7. e4 {[%emt 0:00:01]} Nc6 {[%emt 0:00:02]} 8. e5 {[%emt 0:00:14]} Nd7 {[%emt 0:00:02]} 9. Bf4 {[%emt 0:00:01]} g5 {[%emt 0:00:13]} 10. Bd2 {[%emt 0:00:01]} Ndxe5 {[%emt 0:00:02]} 11. Nxe5 {[%emt 0:00:05]} Nxe5 {[%emt 0:00:01]} 12. Qh5 Ng6 {[%emt 0:00:08]} 13. Rae1 {[%emt 0:00:07]} f5 {[%emt 0:00:09]} 14. f4 {[%emt 0:00:17]} gxf4 {[%emt 0:00:08]} 15. Ne2 {[%emt 0:00:06]} fxg3 {[%emt 0:00:06]} 16. hxg3 {[%emt 0:00:01]} Bf6 {[%emt 0:00:07]} 17. c3 {[%emt 0:00:09]} Bd7 {[%emt 0:00:05]} 18. Bh6 {[%emt 0:00:08]} Bg7 {[%emt 0:00:06]} 19. Bxg7 {[%emt 0:00:06]} Kxg7 {[%emt 0:00:01]} 20. Kf2 {[%emt 0:00:05]} h6 {[%emt 0:00:05]} 21. Nf4 {[%emt 0:00:05]} Qg5 {[%emt 0:00:12]} 22. Qxg5 {[%emt 0:00:03]} hxg5 {[%emt 0:00:01]} 23. Nxe6+ {[%emt 0:00:01]} Bxe6 {[%emt 0:00:02]} 24. Rxe6 {[%emt 0:00:01]} Rad8 {[%emt 0:00:02]} 25. Rfe1 {[%emt 0:00:04]} Rf6 {[%emt 0:00:03]} 26. Re8 {[%emt 0:00:10]} Rfd6 {[%emt 0:00:05]} 27. R1e2 {[%emt 0:00:23]} Kf7 {[%emt 0:00:02]} 28. Rxd8 {[%emt 0:00:02]} Rxd8 {[%emt 0:00:01]} 29. Bf3 {[%emt 0:00:07]} b6 {[%emt 0:00:05]} 30. d4 {[%emt 0:00:03]} cxd4 {[%emt 0:00:08]} 31. cxd4 {[%emt 0:00:01]} f4 {[%emt 0:00:01]} 32. Rc2 {[%emt 0:00:03]} fxg3+ {[%emt 0:00:06]} 33. Kxg3 {[%emt 0:00:02]} Rd7 {[%emt 0:00:05]} 34. Kg4 {[%emt 0:00:03]} Nf4 {[%emt 0:00:03]} 35. Kxg5 {[%emt 0:00:01]} Ne6+ {[%emt 0:00:01]} 36. Kg4 {[%emt 0:00:03]} Nxd4 {[%emt 0:00:01]} 1/2-1/2

[Event "11th LCC Super Blitz KO 2019"]
[Site "London"]
[Date "2019.12.08"]
[Round "1.2"]
[White "Mitra, Roman C"]
[Black "Vocaturo, Daniele"]
[Result "0-1"]
[ECO "A05"]
[WhiteElo "2132"]
[BlackElo "2627"]
[Annotator "ChessBase"]
[PlyCount "86"]
[EventDate "2019.12.08"]
[EventType "k.o."]
[EventCountry "ENG"]
[SourceTitle "playchess.com"]
[Source "ChessBase"]
[SourceQuality "1"]
[TimeControl "180+2"]

1. g3 {[%emt 0:00:00]} Nf6 {[%emt 0:00:00]} 2. Bg2 {[%emt 0:00:01]} d5 {[%emt 0:00:01]} 3. Nf3 {[%emt 0:00:01]} g6 {[%emt 0:00:01]} 4. b3 {[%emt 0:00:01]} Bg7 {[%emt 0:00:02]} 5. Bb2 {[%emt 0:00:01]} O-O {[%emt 0:00:02]} 6. c4 {[%emt 0:00:02]} Nc6 {[%emt 0:00:02]} 7. cxd5 {[%emt 0:00:02]} Nxd5 {[%emt 0:00:01]} 8. Bxg7 {[%emt 0:00:02]} Kxg7 {[%emt 0:00:01]} 9. O-O {[%emt 0:00:04]} e5 {[%emt 0:00:04]} 10. d3 {[%emt 0:00:01]} Bg4 {[%emt 0:00:07]} 11. h3 {[%emt 0:00:08]} Be6 {[%emt 0:00:01]} 12. Qc2 {[%emt 0:00:11]} Qd7 {[%emt 0:00:39]} 13. Qb2 {[%emt 0:00:12]} f6 {[%emt 0:00:01]} 14. Kh2 {[%emt 0:00:01]} a5 {[%emt 0:00:06]} 15. a3 {[%emt 0:00:03]} Nde7 {[%emt 0:00:05]} 16. Nbd2 {[%emt 0:00:03]} Nf5 {[%emt 0:00:02]} 17. Ne4 {[%emt 0:00:02]} b6 {[%emt 0:00:02]} 18. b4 {[%emt 0:00:09]} Ncd4 {[%emt 0:00:06]} 19. Rfd1 {[%emt 0:00:35]} Bd5 {[%emt 0:00:13]} 20. e3 {[%emt 0:00:17]} Nxf3+ {[%emt 0:00:02]} 21. Bxf3 {[%emt 0:00:02]} h5 {[%emt 0:00:07]} 22. h4 {[%emt 0:00:29]} Rf7 {[%emt 0:00:03]} 23. Qc3 {[%emt 0:00:07]} Kh7 {[%emt 0:00:21]} 24. Rdc1 {[%emt 0:00:08]} Ng7 {[%emt 0:00:15]} 25. Rc2 {[%emt 0:00:17]} Ne6 {[%emt 0:00:03]} 26. Rac1 {[%emt 0:00:09]} axb4 {[%emt 0:00:02]} 27. axb4 {[%emt 0:00:02]} Rd8 {[%emt 0:00:08]} 28. Rd2 {[%emt 0:00:11]} Ba8 {[%emt 0:00:11]} 29. Rcd1 {[%emt 0:00:03]} Kh6 {[%emt 0:00:08]} 30. Qc1 {[%emt 0:00:05]} Kg7 {[%emt 0:00:03]} 31. Qc3 {[%emt 0:00:01]} Kg8 {[%emt 0:00:07]} 32. Bg2 {[%emt 0:00:02]} f5 {[%emt 0:00:20]} 33. Ng5 {[%emt 0:00:02]} Nxg5 {[%emt 0:00:02]} 34. Bxa8 {[%emt 0:00:05]} Rxa8 {[%emt 0:00:01]} 35. hxg5 {[%emt 0:00:01]} Re8 {[%emt 0:00:08]} 36. f4 {[%emt 0:00:09]} exf4 {[%emt 0:00:03]} 37. exf4 {[%emt 0:00:02]} h4 {[%emt 0:00:04]} 38. Qc4 {[%emt 0:00:14]} b5 {[%emt 0:00:03]} 39. Qb3 {[%emt 0:00:02]} hxg3+ {[%emt 0:00:03]} 40. Kxg3 {[%emt 0:00:01]} Re3+ {[%emt 0:00:01]} 41. Kg2 {[%emt 0:00:02]} Qc6+ {[%emt 0:00:03]} 42. Kg1 {[%emt 0:00:02]} Rg3+ {[%emt 0:00:04]} 43. Kh2 {[%emt 0:00:02]} Qf3 {[%emt 0:00:01]} 0-1

[Event "11th LCC Super Blitz KO 2019"]
[Site "London"]
[Date "2019.12.08"]
[Round "1.2"]
[White "Tanmay Chopra"]
[Black "Gharamian, Tigran"]
[Result "0-1"]
[ECO "E34"]
[WhiteElo "2100"]
[BlackElo "2603"]
[Annotator "ChessBase"]
[PlyCount "81"]
[EventDate "2019.12.08"]
[EventType "k.o."]
[EventCountry "ENG"]
[SourceTitle "playchess.com"]
[Source "ChessBase"]
[SourceQuality "1"]
[TimeControl "180+2"]

1. d4 {[%emt 0:00:00]} Nf6 {[%emt 0:00:00]} 2. c4 {[%emt 0:00:00]} e6 {[%emt 0:00:00]} 3. Nc3 {[%emt 0:00:00]} Bb4 {[%emt 0:00:00]} 4. Qc2 {[%emt 0:00:01]} d5 {[%emt 0:00:02]} 5. cxd5 {[%emt 0:00:03]} Qxd5 {[%emt 0:00:02]} 6. Nf3 {[%emt 0:00:07]} Qf5 {[%emt 0:00:01]} 7. Qxf5 {[%emt 0:00:23]} exf5 {[%emt 0:00:01]} 8. Bf4 {[%emt 0:00:12]} c6 {[%emt 0:00:01]} 9. a3 {[%emt 0:00:13]} Be7 {[%emt 0:00:04]} 10. h3 {[%emt 0:00:04]} Be6 {[%emt 0:00:05]} 11. e3 {[%emt 0:00:02]} Nbd7 {[%emt 0:00:04]} 12. Bd3 {[%emt 0:00:01]} h6 {[%emt 0:00:08]} 13. b4 {[%emt 0:00:10]} O-O {[%emt 0:00:05]} 14. Ne5 {[%emt 0:00:24]} Nxe5 {[%emt 0:00:07]} 15. Bxe5 {[%emt 0:00:01]} Nd7 {[%emt 0:00:01]} 16. Bf4 {[%emt 0:00:02]} Nb6 {[%emt 0:00:09]} 17. O-O {[%emt 0:00:04]} Rfc8 {[%emt 0:00:06]} 18. Rfc1 {[%emt 0:00:03]} f6 {[%emt 0:00:18]} 19. h4 {[%emt 0:00:17]} g5 {[%emt 0:00:01]} 20. Bg3 {[%emt 0:00:01]} Kf7 {[%emt 0:00:04]} 21. f3 {[%emt 0:00:03]} Rd8 {[%emt 0:00:13]} 22. Ne2 {[%emt 0:00:08]} Nd5 {[%emt 0:00:10]} 23. Bf2 {[%emt 0:00:01]} a6 {[%emt 0:00:14]} 24. e4 {[%emt 0:00:13]} fxe4 {[%emt 0:00:05]} 25. fxe4 {[%emt 0:00:01]} Nc7 {[%emt 0:00:04]} 26. Be3 {[%emt 0:00:01]} Nb5 {[%emt 0:00:15]} 27. hxg5 {[%emt 0:00:33]} hxg5 {[%emt 0:00:01]} 28. Rf1 {[%emt 0:00:01]} Kg7 {[%emt 0:00:02]} 29. a4 {[%emt 0:00:23]} Nd6 {[%emt 0:00:01]} 30. Rab1 {[%emt 0:00:01]} Nc4 {[%emt 0:00:18]} 31. Bc1 {[%emt 0:00:05]} b5 {[%emt 0:00:01]} 32. axb5 {[%emt 0:00:11]} axb5 {[%emt 0:00:01]} 33. d5 {[%emt 0:00:01]} cxd5 {[%emt 0:00:36]} 34. Nd4 {[%emt 0:00:01]} Bf7 {[%emt 0:00:03]} 35. exd5 {[%emt 0:00:10]} Bxd5 {[%emt 0:00:10]} 36. Nxb5 {[%emt 0:00:02]} Ne5 {[%emt 0:00:06]} 37. Be2 {[%emt 0:00:02]} Be4 {[%emt 0:00:04]} 38. Rb2 {[%emt 0:00:03]} Rab8 {[%emt 0:00:07]} 39. Be3 {[%emt 0:00:02]} Bd3 {[%emt 0:00:04]} 40. Nc3 {[%emt 0:00:04]} Nc4 {[%emt 0:00:03]} 41. Bxd3 {[%emt 0:00:06]} 0-1

[Event "11th LCC Super Blitz KO 2019"]
[Site "London"]
[Date "2019.12.08"]
[Round "1.3"]
[White "McShane, Luke J"]
[Black "Clarke, Brandon G I"]
[Result "1-0"]
[ECO "B55"]
[WhiteElo "2677"]
[BlackElo "2437"]
[Annotator "ChessBase"]
[PlyCount "91"]
[EventDate "2019.12.08"]
[EventType "k.o."]
[EventCountry "ENG"]
[SourceTitle "playchess.com"]
[Source "ChessBase"]
[SourceQuality "1"]
[TimeControl "180+2"]

1. e4 {[%emt 0:00:00]} c5 {[%emt 0:00:00]} 2. Nf3 {[%emt 0:00:00]} d6 {[%emt 0:00:00]} 3. d4 {[%emt 0:00:00]} cxd4 {[%emt 0:00:00]} 4. Nxd4 {[%emt 0:00:00]} Nf6 {[%emt 0:00:00]} 5. f3 {[%emt 0:00:00]} e5 {[%emt 0:00:00]} 6. Nb3 a5 7. c4 {[%emt 0:00:00]} a4 {[%emt 0:00:00]} 8. N3d2 {[%emt 0:00:00]} Be6 {[%emt 0:00:00]} 9. Nc3 {[%emt 0:00:00]} Qa5 {[%emt 0:00:00]} 10. Rb1 {[%emt 0:00:00]} Be7 {[%emt 0:00:00]} 11. Be2 {[%emt 0:00:00]} Nc6 {[%emt 0:00:00]} 12. O-O {[%emt 0:00:00]} Nd4 {[%emt 0:00:00]} 13. Bd3 {[%emt 0:00:00]} O-O {[%emt 0:00:00]} 14. Kh1 {[%emt 0:00:00]} Nh5 {[%emt 0:00:02]} 15. g3 {[%emt 0:00:00]} g6 {[%emt 0:00:04]} 16. Rf2 {[%emt 0:00:00]} Qa7 {[%emt 0:00:03]} 17. Nf1 {[%emt 0:00:00]} f5 {[%emt 0:00:16]} 18. exf5 {[%emt 0:00:00]} gxf5 {[%emt 0:00:02]} 19. Be3 {[%emt 0:00:00]} Bd8 {[%emt 0:00:18]} 20. Nb5 {[%emt 0:00:00]} Qc5 {[%emt 0:00:09]} 21. Nxd4 {[%emt 0:00:00]} exd4 {[%emt 0:00:03]} 22. Bh6 {[%emt 0:00:00]} Re8 {[%emt 0:00:06]} 23. Nd2 {[%emt 0:00:00]} Bf6 {[%emt 0:00:12]} 24. Qf1 {[%emt 0:00:00]} Kh8 {[%emt 0:00:05]} 25. Re1 {[%emt 0:00:07]} Bd7 {[%emt 0:00:03]} 26. Rfe2 {[%emt 0:00:06]} Rxe2 {[%emt 0:00:06]} 27. Rxe2 {[%emt 0:00:04]} Be5 {[%emt 0:00:13]} 28. Qh3 {[%emt 0:00:07]} Ng7 {[%emt 0:00:08]} 29. Bg5 {[%emt 0:00:09]} Rf8 {[%emt 0:00:48]} 30. f4 {[%emt 0:00:03]} Bf6 {[%emt 0:00:09]} 31. Bxf6 {[%emt 0:00:03]} Rxf6 {[%emt 0:00:03]} 32. Qh4 {[%emt 0:00:02]} Rf8 {[%emt 0:00:11]} 33. Qe7 {[%emt 0:00:10]} Bc6+ {[%emt 0:00:03]} 34. Kg1 {[%emt 0:00:04]} Re8 {[%emt 0:00:02]} 35. Qf7 {[%emt 0:00:10]} Rg8 {[%emt 0:00:20]} 36. Rf2 {[%emt 0:00:30]} Qb4 {[%emt 0:00:03]} 37. Qf6 {[%emt 0:00:05]} Qxb2 {[%emt 0:00:06]} 38. Qxd6 {[%emt 0:00:08]} Qc1+ {[%emt 0:00:03]} 39. Bf1 {[%emt 0:00:05]} Qc3 {[%emt 0:00:06]} 40. Qf6 {[%emt 0:00:04]} Qe3 {[%emt 0:00:04]} 41. c5 {[%emt 0:00:10]} Re8 {[%emt 0:00:03]} 42. Nc4 {[%emt 0:00:07]} Qe4 {[%emt 0:00:05]} 43. Rg2 {[%emt 0:00:04]} d3 {[%emt 0:00:05]} 44. Nd6 {[%emt 0:00:04]} Qe3+ {[%emt 0:00:03]} 45. Rf2 {[%emt 0:00:03]} Ra8 {[%emt 0:00:19]} 46. Qxg7+ {[%emt 0:00:03]} 1-0